bitfinex-derivatives/quotes_BTCF0:USTF0_20250508
["timestamp","ask_amount","ask_price","bid_price","bid_amount"]
[1746721967594,0.62508739,100870.0,100860.0,0.5812]
[1746721968197,0.48866121,100870.0,100860.0,0.5308]
[1746721969099,0.62508739,100870.0,100860.0,0.5308]
[1746721969693,0.62508739,100870.0,100860.0,0.17]
[1746721970093,0.52517138,100870.0,100860.0,0.17]
[1746721970293,0.52517138,100870.0,100860.0,0.001]
[1746721970493,0.52717138,100870.0,100860.0,0.002]
[1746721970797,0.52717138,100870.0,100860.0,0.001]
[1746721970798,1.02717138,100870.0,100860.0,0.001]
[1746721970994,0.1982649,100860.0,100850.0,0.36179154]
[1746721971193,0.4368649,100860.0,100850.0,0.52979154]
[1746721971496,0.57329108,100860.0,100850.0,0.52979154]
[1746721971697,0.67137108,100860.0,100850.0,0.52979154]
[1746721972088,0.67137108,100860.0,100850.0,0.36179154]
[1746721972489,1.17537108,100860.0,100850.0,0.36179154]
[1746721973402,1.77998374,100860.0,100850.0,0.00099154]
[1746721973595,1.78398374,100860.0,100850.0,0.00199154]
[1746721973790,0.1983042,100840.0,100830.0,0.04818349]
[1746721973988,0.78553038,100840.0,100830.0,0.04818349]
[1746721974196,0.93473038,100840.0,100830.0,0.16998349]
[1746721975200,0.93473038,100840.0,100830.0,0.17098349]
[1746721976198,0.93573038,100840.0,100830.0,0.00298349]
[1746721976397,1.03381038,100840.0,100830.0,0.00298349]
[1746721976901,1.53381038,100840.0,100830.0,0.00298349]
[1746721977106,1.53381038,100840.0,100830.0,0.17098349]
[1746721977497,1.3973842,100840.0,100830.0,0.17098349]
[1746721977696,1.53381038,100840.0,100830.0,0.17098349]
[1746721980194,1.17301038,100840.0,100830.0,0.57888349]
[1746721980398,0.6502,100840.0,100830.0,0.91363357]
[1746721980602,0.501,100840.0,100830.0,1.52413357]
[1746721980801,0.501,100840.0,100830.0,1.43790739]
[1746721981497,0.501,100840.0,100830.0,1.42433357]
[1746721981901,0.001,100840.0,100830.0,1.42433357]
[1746721982203,0.091,100840.0,100830.0,0.87790739]
[1746721982404,0.1399,100840.0,100830.0,0.87790739]
[1746721983101,0.48692516,100840.0,100830.0,1.01433357]
[1746721983504,0.48692516,100840.0,100830.0,0.62938349]
[1746721983704,0.53532516,100840.0,100830.0,0.82770739]
[1746721983903,0.53532516,100840.0,100830.0,0.62938349]
[1746721984105,0.67175134,100840.0,100830.0,0.62938349]
[1746721984399,0.67175134,100840.0,100830.0,0.57888349]
[1746721984606,0.67175134,100840.0,100830.0,0.53178349]
[1746721985103,1.17175134,100840.0,100830.0,0.53178349]
[1746721985306,1.26983134,100840.0,100830.0,0.53178349]
[1746721986099,1.13340516,100840.0,100830.0,0.53178349]
[1746721986301,1.26983134,100840.0,100830.0,0.53178349]
[1746721989203,1.26983134,100840.0,100830.0,0.36378349]
[1746721989808,1.26983134,100840.0,100830.0,0.41158349]
[1746721990201,1.26983134,100840.0,100830.0,0.53178349]
[1746721991101,1.26983134,100840.0,100830.0,0.36378349]
[1746721991910,1.26983134,100840.0,100830.0,0.40988349]
[1746721992112,1.26983134,100840.0,100830.0,0.57788349]
[1746721992311,1.63063134,100840.0,100830.0,0.17098349]
[1746721992607,0.1983239,100830.0,100820.0,0.00099178]
[1746721992807,0.88888322,100830.0,100820.0,0.00099178]
[1746721993211,1.1244894,100830.0,100820.0,0.00099178]
[1746721993409,0.1983632,100810.0,100800.0,0.64664611]
[1746721993610,0.42478938,100810.0,100800.0,0.67787611]
[1746721993809,0.51808938,100810.0,100800.0,0.67787611]
[1746721994213,0.51808938,100810.0,100800.0,0.50987611]
[1746721994410,0.52008938,100810.0,100800.0,0.50987611]
[1746721995010,0.1389,100810.0,100800.0,0.70825901]
[1746721995311,0.3372632,100810.0,100800.0,0.92545901]
[1746721995614,0.3836632,100810.0,100800.0,0.92545901]
[1746721995812,0.3836632,100810.0,100800.0,0.9337359]
[1746721996019,0.6853,100810.0,100800.0,0.9337359]
[1746721996213,0.6389,100810.0,100800.0,0.9337359]
[1746721996425,0.592,100810.0,100800.0,0.9337359]
[1746721996608,0.592,100810.0,100800.0,1.07016208]
[1746721996809,0.7903632,100810.0,100800.0,1.07016208]
[1746721997011,0.592,100810.0,100800.0,1.07016208]
[1746721997212,0.502,100810.0,100800.0,1.14016208]
[1746721997412,0.002,100810.0,100800.0,1.14016208]
[1746721998011,0.002,100810.0,100800.0,1.14116208]
[1746721998220,0.004,100810.0,100800.0,1.14116208]
[1746721999717,0.004,100810.0,100800.0,1.0047359]
[1746721999916,0.10353777,100810.0,100800.0,1.14116208]
[1746722000117,0.10353777,100810.0,100800.0,1.0047359]
[1746722000705,0.10353777,100810.0,100800.0,1.35116208]
[1746722001117,0.10353777,100810.0,100800.0,1.76706208]
[1746722001513,0.10353777,100810.0,100800.0,1.58678826]
[1746722001712,0.10353777,100810.0,100800.0,1.76678826]
[1746722001907,0.10353777,100810.0,100800.0,2.01678826]
[1746722002215,0.10353777,100810.0,100800.0,1.66758826]
[1746722003023,0.10353777,100810.0,100800.0,1.76758826]
[1746722003318,0.10353777,100810.0,100800.0,1.66758826]
[1746722003519,0.10353777,100810.0,100800.0,1.76678826]
[1746722003826,0.10353777,100810.0,100800.0,2.78678826]
[1746722004522,0.10353777,100810.0,100800.0,3.30268826]
[1746722004719,0.09953777,100810.0,100800.0,3.30268826]
[1746722004915,0.01293812,100820.0,100810.0,0.5591632]
[1746722005118,0.14948726,100830.0,100820.0,0.1983435]
[1746722005423,0.14948726,100830.0,100820.0,1.32336968]
[1746722005620,0.07664444,100850.0,100840.0,0.1983042]
[1746722005922,0.03247444,100850.0,100840.0,1.54393038]
[1746722006126,0.09047671,100860.0,100850.0,0.1982845]
[1746722006316,0.25269107,100860.0,100850.0,1.24691068]
[1746722006517,0.25269107,100860.0,100850.0,2.26691068]
[1746722006719,0.25269107,100860.0,100850.0,2.36451068]
[1746722007119,0.25469107,100860.0,100850.0,2.53990112]
[1746722007423,0.25469107,100860.0,100850.0,2.67990112]
[1746722007620,0.25469107,100860.0,100850.0,2.67905311]
[1746722007824,0.25469107,100860.0,100850.0,2.79905311]
[1746722008321,0.25469107,100860.0,100850.0,2.80005311]
[1746722008625,0.25269107,100860.0,100850.0,2.80105311]
[1746722008824,0.25269107,100860.0,100850.0,2.81592311]
[1746722009025,0.25269107,100860.0,100850.0,2.58034494]
[1746722009325,0.25269107,100860.0,100850.0,2.58677112]
[1746722009620,0.25269107,100860.0,100850.0,2.68592311]
[1746722009820,0.25269107,100860.0,100850.0,2.79592311]
[1746722010423,0.002,100870.0,100860.0,0.1982649]
[1746722010723,0.002,100870.0,100860.0,1.24696126]
[1746722011317,0.002,100870.0,100860.0,1.41496126]
[1746722011517,0.003,100870.0,100860.0,1.41496126]
[1746722012421,0.005,100870.0,100860.0,1.41496126]
[1746722012616,0.005,100870.0,100860.0,2.43496126]
[1746722013325,0.004,100870.0,100860.0,2.44412541]
[1746722013526,0.004,100870.0,100860.0,2.54168541]
[1746722013726,0.004,100870.0,100860.0,2.26883305]
[1746722013927,0.004,100870.0,100860.0,2.54168541]
[1746722014127,0.002,100870.0,100860.0,2.54168541]
[1746722014324,0.002,100870.0,100860.0,2.95758541]
[1746722014522,0.001,100880.0,100870.0,0.1982452]
[1746722014831,0.001,100880.0,100870.0,1.57787138]
[1746722015130,0.001,100880.0,100870.0,1.74587138]
[1746722015828,0.003,100880.0,100870.0,1.74587138]
[1746722016328,0.003,100880.0,100870.0,1.84343138]
[1746722016526,0.004,100880.0,100870.0,1.84343138]
[1746722017028,0.2434879,100900.0,100890.0,0.1982059]
[1746722017220,0.003,100900.0,100890.0,1.55265826]
[1746722017421,0.04399793,100920.0,100910.0,0.1981666]
[1746722017725,0.04399793,100920.0,100910.0,2.57375278]
[1746722018031,0.12929793,100920.0,100910.0,2.65905278]
[1746722018230,0.12929793,100920.0,100910.0,2.82705278]
[1746722018431,0.00189793,100920.0,100910.0,3.06257096]
[1746722018633,0.003,100930.0,100920.0,0.198147]
[1746722018819,0.003,100930.0,100920.0,1.26939936]
[1746722019334,0.003,100930.0,100920.0,1.43739936]
[1746722019923,0.003,100930.0,100920.0,1.53648336]
[1746722020126,0.004,100930.0,100920.0,1.53648336]
[1746722020332,0.004,100930.0,100920.0,1.54482904]
[1746722020734,0.005,100930.0,100920.0,1.44574504]
[1746722021619,0.005,100930.0,100920.0,1.65060504]
[1746722021833,0.26453618,100950.0,100940.0,0.1981077]
[1746722022033,0.26453618,100950.0,100940.0,1.40365388]
[1746722022233,0.46262428,100950.0,100940.0,1.5234277]
[1746722022434,0.2873881,100950.0,100940.0,1.65985388]
[1746722023026,0.0893,100950.0,100940.0,1.65985388]
[1746722023536,0.2923881,100950.0,100940.0,1.66085388]
[1746722023735,0.2973881,100950.0,100940.0,1.66185388]
[1746722023927,0.2973881,100950.0,100940.0,1.56433388]
[1746722024124,0.2973881,100950.0,100940.0,1.66185388]
[1746722024535,0.2973881,100950.0,100940.0,1.1097077]
[1746722025034,0.2973881,100950.0,100940.0,1.24613388]
[1746722026236,0.43381428,100950.0,100940.0,0.8916]
[1746722026441,0.43381428,100950.0,100940.0,0.5308]
[1746722026735,0.68381428,100950.0,100940.0,0.5308]
[1746722027127,0.68381428,100950.0,100940.0,0.002]
[1746722027327,0.1981077,100940.0,100930.0,0.7767]
[1746722027534,0.42583388,100940.0,100930.0,0.7767]
[1746722027736,0.2894077,100940.0,100930.0,0.9748274]
[1746722028135,0.2894077,100940.0,100930.0,1.1428274]
[1746722028641,0.2894077,100940.0,100930.0,0.7269274]
[1746722028833,0.2894077,100940.0,100930.0,0.5288]
[1746722029329,0.1981274,100930.0,100920.0,0.02217447]
[1746722029530,0.1981666,100910.0,100900.0,0.65807]
[1746722029733,0.1486221,100920.0,100910.0,0.1981666]
[1746722029734,0.57501198,100920.0,100910.0,0.1981666]
[1746722029938,0.3923858,100920.0,100910.0,0.5589666]
[1746722030130,0.3923858,100920.0,100910.0,0.7269666]
[1746722030527,0.3428448,100920.0,100910.0,0.7269666]
[1746722030734,0.0456,100920.0,100910.0,0.86339278]
[1746722030940,0.243747,100920.0,100910.0,0.86439278]
[1746722031138,0.243747,100920.0,100910.0,0.90739278]
[1746722031645,0.243747,100920.0,100910.0,0.87246133]
[1746722031838,0.243747,100920.0,100910.0,0.73603515]
[1746722032235,0.243747,100920.0,100910.0,0.17751348]
[1746722032441,0.38017318,100920.0,100910.0,0.17751348]
[1746722032641,0.42577318,100920.0,100910.0,0.17751348]
[1746722032844,0.42577318,100920.0,100910.0,0.17651348]
[1746722033039,0.42977318,100920.0,100910.0,0.17551348]
[1746722033343,0.42977318,100920.0,100910.0,0.00751348]
[1746722033544,0.1981666,100910.0,100900.0,0.7076232]
[1746722033743,0.2420666,100910.0,100900.0,0.6085304]
[1746722034140,0.2420666,100910.0,100900.0,0.7765304]
[1746722034444,0.2420666,100910.0,100900.0,0.91295658]
[1746722034742,0.2450666,100910.0,100900.0,0.91395658]
[1746722035130,0.2450666,100910.0,100900.0,0.7775304]
[1746722035335,0.2450666,100910.0,100900.0,0.91395658]
[1746722035531,0.0499,100910.0,100900.0,0.91395658]
[1746722035741,0.0499,100910.0,100900.0,0.95975658]
[1746722035943,0.0499,100910.0,100900.0,1.00275658]
[1746722036143,0.0499,100910.0,100900.0,1.32103552]
[1746722036642,0.006,100910.0,100900.0,1.32103552]
[1746722036838,0.006,100910.0,100900.0,1.55772362]
[1746722037343,0.006,100910.0,100900.0,2.57772362]
[1746722041743,0.0856,100940.0,100930.0,0.1981274]
[1746722041941,0.0856,100940.0,100930.0,1.05615358]
[1746722042144,0.001,100950.0,100940.0,0.1981077]
[1746722042441,0.0464,100950.0,100940.0,0.78503388]
[1746722042639,0.2444881,100950.0,100940.0,0.78503388]
[1746722042847,0.0464,100950.0,100940.0,0.78503388]
[1746722043240,0.0464,100950.0,100940.0,0.95303388]
[1746722043849,0.0514,100950.0,100940.0,0.95403388]
[1746722044642,0.0554,100950.0,100940.0,0.95403388]
[1746722045143,0.0993,100950.0,100940.0,1.32403388]
[1746722046145,0.0993,100950.0,100940.0,1.73993388]
[1746722046448,0.2973881,100950.0,100940.0,1.73993388]
[1746722046638,0.0993,100950.0,100940.0,1.73993388]
[1746722049453,0.01,100950.0,100940.0,1.83705388]
[1746722049650,0.01,100950.0,100940.0,1.42115388]
[1746722050354,0.002,100960.0,100950.0,0.1980881]
[1746722050653,0.002,100960.0,100950.0,1.45364046]
[1746722051153,0.002,100960.0,100950.0,1.62164046]
[1746722051654,0.002,100960.0,100950.0,1.62464046]
[1746722051853,0.002,100960.0,100950.0,2.64464046]
[1746722052055,0.00447,100960.0,100950.0,2.64464046]
[1746722052253,0.00447,100960.0,100950.0,2.50821428]
[1746722052453,0.00447,100960.0,100950.0,2.38821428]
[1746722052653,0.09057,100960.0,100950.0,2.39121428]
[1746722052855,0.2886385,100960.0,100950.0,2.39922248]
[1746722053044,0.09057,100960.0,100950.0,2.39922248]
[1746722053247,0.2886385,100960.0,100950.0,2.35572248]
[1746722053455,0.2886385,100960.0,100950.0,1.1992963]
[1746722053647,0.3331385,100960.0,100950.0,1.1992963]
[1746722053848,0.3331385,100960.0,100950.0,0.9574082]
[1746722054050,0.3331385,100960.0,100950.0,1.1554963]
[1746722054558,0.3331385,100960.0,100950.0,1.29192248]
[1746722057545,0.3331385,100960.0,100950.0,1.33532248]
[1746722058359,0.3331385,100960.0,100950.0,0.96532248]
[1746722059461,0.13507,100960.0,100950.0,1.10174866]
[1746722059761,0.00447,100960.0,100950.0,1.55394866]
[1746722059952,0.00447,100960.0,100950.0,1.41752248]
[1746722060149,0.2025385,100960.0,100950.0,1.37532248]
[1746722060354,0.3346385,100960.0,100950.0,1.37532248]
[1746722060854,0.3346385,100960.0,100950.0,1.1954963]
[1746722061659,0.3346385,100960.0,100950.0,1.33192248]
[1746722062664,0.13657,100960.0,100950.0,1.33192248]
[1746722062960,0.13657,100960.0,100950.0,1.37632248]
[1746722063356,0.3346385,100960.0,100950.0,1.37632248]
[1746722063556,0.13657,100960.0,100950.0,1.37632248]
[1746722063963,0.13657,100960.0,100950.0,1.2398963]
[1746722064160,0.3346385,100960.0,100950.0,1.37632248]
[1746722064554,0.13657,100960.0,100950.0,1.37632248]
[1746722066362,0.3346385,100960.0,100950.0,1.37632248]
[1746722066863,0.13657,100960.0,100950.0,1.37632248]
[1746722067466,0.13657,100960.0,100950.0,1.2398963]
[1746722067659,0.3346385,100960.0,100950.0,1.33192248]
[1746722068159,0.13657,100960.0,100950.0,1.33192248]
[1746722068364,0.12409613,100970.0,100960.0,0.1980685]
[1746722068554,0.09508913,100970.0,100960.0,1.74629468]
[1746722068756,0.09508913,100970.0,100960.0,1.84533868]
[1746722068957,0.09508913,100970.0,100960.0,2.86533868]
[1746722069162,0.09508913,100970.0,100960.0,3.03333868]
[1746722069665,0.09508913,100970.0,100960.0,3.03433868]
[1746722069965,0.01669143,100970.0,100960.0,3.03433868]
[1746722070168,0.14890909,100980.0,100970.0,0.1980489]
[1746722070462,0.14890909,100980.0,100970.0,1.74686126]
[1746722070968,0.14890909,100980.0,100970.0,1.64686126]
[1746722071175,0.14990909,100980.0,100970.0,1.67843508]
[1746722071478,0.15090909,100980.0,100970.0,1.67843508]
[1746722072368,0.003,100980.0,100970.0,1.67843508]
[1746722072961,0.003,100980.0,100970.0,1.77843508]
[1746722073164,0.003,100980.0,100970.0,2.33076126]
[1746722073360,0.003,100980.0,100970.0,2.23076126]
[1746722073563,0.003,100980.0,100970.0,2.33076126]
[1746722074157,0.003,100980.0,100970.0,2.33072126]
[1746722074364,0.002,100990.0,100980.0,0.1980293]
[1746722074564,0.002,100990.0,100980.0,1.80078166]
[1746722074764,0.002,100990.0,100980.0,1.94078166]
[1746722074969,1.101,101000.0,100990.0,0.1980096]
[1746722075177,1.101,101000.0,100990.0,1.90205578]
[1746722076175,1.101,101000.0,100990.0,1.90505578]
[1746722076765,1.101,101000.0,100990.0,2.10505578]
[1746722076964,0.0403,101010.0,101000.0,0.19799]
[1746722077170,0.0403,101010.0,101000.0,1.28381618]
[1746722077464,0.0822,101010.0,101000.0,1.28381618]
[1746722078060,0.19010909,101020.0,101010.0,0.1979704]
[1746722078263,0.27350909,101020.0,101010.0,0.77579658]
[1746722079063,0.14990909,101020.0,101010.0,1.33379658]
[1746722079269,0.14990909,101020.0,101010.0,1.47421658]
[1746722079672,0.002,101020.0,101010.0,1.47421658]
[1746722080565,0.002,101020.0,101010.0,1.4822767]
[1746722080764,0.1999508,101020.0,101010.0,2.25585052]
[1746722080971,0.0858,101020.0,101010.0,1.87913052]
[1746722081172,0.0858,101020.0,101010.0,1.97585052]
[1746722081374,0.0858,101020.0,101010.0,1.98585052]
[1746722081775,0.0858,101020.0,101010.0,0.96585052]
[1746722081969,0.2837508,101020.0,101010.0,0.92215052]
[1746722082174,0.2837508,101020.0,101010.0,2.31735052]
[1746722082772,0.0858,101020.0,101010.0,0.88145052]
[1746722082968,0.0858,101020.0,101010.0,1.2381767]
[1746722083169,0.0858,101020.0,101010.0,1.6381767]
[1746722083364,0.0858,101020.0,101010.0,1.6805767]
[1746722083568,0.002,101020.0,101010.0,1.6805767]
[1746722084876,0.002,101020.0,101010.0,1.5005767]
[1746722085174,0.0846,101020.0,101010.0,1.4738567]
[1746722085378,0.0846,101020.0,101010.0,1.5705767]
[1746722085971,0.0846,101020.0,101010.0,1.5005767]
[1746722086165,0.2825508,101020.0,101010.0,0.9514567]
[1746722086369,0.0846,101020.0,101010.0,0.91175052]
[1746722086570,0.0846,101020.0,101010.0,1.0481767]
[1746722087078,0.0846,101020.0,101010.0,1.3581767]
[1746722088180,0.2825508,101020.0,101010.0,1.35801532]
[1746722088379,0.0846,101020.0,101010.0,1.35801532]
[1746722088573,0.0846,101020.0,101010.0,1.22158914]
[1746722088768,0.2825508,101020.0,101010.0,1.22158914]
[1746722089382,0.0846,101020.0,101010.0,1.18128914]
[1746722089880,0.0846,101020.0,101010.0,1.22218914]
[1746722090180,0.2825508,101020.0,101010.0,1.22218914]
[1746722090482,0.0846,101020.0,101010.0,1.22218914]
[1746722090783,0.2825508,101020.0,101010.0,0.87084914]
[1746722091276,0.41897698,101020.0,101010.0,0.57676012]
[1746722091479,0.41897698,101020.0,101010.0,0.73483052]
[1746722092181,0.41897698,101020.0,101010.0,0.56683052]
[1746722092779,0.41897698,101020.0,101010.0,0.36886012]
[1746722092979,0.41897698,101020.0,101010.0,0.56683052]
[1746722095087,0.2825508,101020.0,101010.0,0.56683052]
[1746722095282,0.0846,101020.0,101010.0,0.7032567]
[1746722095589,0.0846,101020.0,101010.0,1.1040567]
[1746722095886,0.0846,101020.0,101010.0,1.1464567]
[1746722096079,0.2825508,101020.0,101010.0,1.17803052]
[1746722096285,0.0846,101020.0,101010.0,1.17803052]
[1746722096485,0.0846,101020.0,101010.0,1.3144567]
[1746722096689,0.0846,101020.0,101010.0,1.17803052]
[1746722097379,0.0846,101020.0,101010.0,1.4107367]
[1746722097786,0.002,101020.0,101010.0,1.5907367]
[1746722098684,0.0429,101020.0,101010.0,1.5907367]
[1746722098886,0.0845,101020.0,101010.0,1.5907367]
[1746722099185,0.002,101020.0,101010.0,2.6107367]
[1746722099579,0.002,101020.0,101010.0,2.62606424]
[1746722099883,0.002,101020.0,101010.0,2.62606416]
[1746722100082,0.002,101020.0,101010.0,2.6107367]
[1746722100285,0.0429,101020.0,101010.0,2.6107367]
[1746722100476,0.2825508,101020.0,101010.0,2.30964178]
[1746722100677,0.41897698,101020.0,101010.0,1.81096178]
[1746722100880,0.41897698,101020.0,101010.0,0.77563052]
[1746722101090,0.2825508,101020.0,101010.0,0.73483052]
[1746722102190,0.2825508,101020.0,101010.0,0.56683052]
[1746722102487,0.0846,101020.0,101010.0,0.7444567]
[1746722102686,0.0846,101020.0,101010.0,0.9641567]
[1746722103078,0.0846,101020.0,101010.0,1.14762956]
[1746722103477,0.0846,101020.0,101010.0,1.31762956]
[1746722106496,0.0846,101020.0,101010.0,1.31761168]
[1746722107086,0.2825508,101020.0,101010.0,1.1414855]
[1746722107282,0.41897698,101020.0,101010.0,0.73483052]
[1746722108195,0.2825508,101020.0,101010.0,0.56683052]
[1746722108894,0.2825508,101020.0,101010.0,0.60863052]
[1746722109191,0.2825508,101020.0,101010.0,0.92852952]
[1746722109496,0.2825508,101020.0,101010.0,0.97082952]
[1746722109688,0.0846,101020.0,101010.0,1.20082952]
[1746722110091,0.0846,101020.0,101010.0,1.20082822]
[1746722110994,0.0846,101020.0,101010.0,1.20282822]
[1746722111390,0.0846,101020.0,101010.0,1.20382822]
[1746722111798,0.0846,101020.0,101010.0,1.06740204]
[1746722111998,0.0846,101020.0,101010.0,1.48330204]
[1746722112299,0.2850208,101020.0,101010.0,1.25330204]
[1746722112602,0.08707,101020.0,101010.0,1.25330204]
[1746722112792,0.08707,101020.0,101010.0,1.52330204]
[1746722112992,0.08707,101020.0,101010.0,1.53330204]
[1746722113398,0.08707,101020.0,101010.0,1.53318055]
[1746722113996,0.08707,101020.0,101010.0,1.70783052]
[1746722114197,0.08707,101020.0,101010.0,1.90152816]
[1746722114394,0.08707,101020.0,101010.0,1.70152816]
[1746722114600,0.08707,101020.0,101010.0,1.57510198]
[1746722114896,0.2850208,101020.0,101010.0,1.57510198]
[1746722115091,0.2850208,101020.0,101010.0,1.29753052]
[1746722116092,0.2850208,101020.0,101010.0,1.46553052]
[1746722118096,0.2850208,101020.0,101010.0,0.61163052]
[1746722118693,0.08707,101020.0,101010.0,0.61163052]
[1746722118893,0.2850208,101020.0,101010.0,0.7894567]
[1746722119101,0.2850208,101020.0,101010.0,0.82103052]
[1746722120089,0.2850208,101020.0,101010.0,0.78303052]
[1746722120294,0.08707,101020.0,101010.0,0.78303052]
[1746722120793,0.2850208,101020.0,101010.0,0.78303052]
[1746722121203,0.2850208,101020.0,101010.0,0.95103052]
[1746722121401,0.2850208,101020.0,101010.0,0.82103052]
[1746722121804,0.2850208,101020.0,101010.0,0.82600052]
[1746722123107,0.2850208,101020.0,101010.0,0.65800052]
[1746722124009,0.08707,101020.0,101010.0,0.65800052]
[1746722124200,0.08707,101020.0,101010.0,0.93600052]
[1746722124508,0.21204702,101020.0,101010.0,1.14600052]
[1746722125501,0.21204702,101020.0,101010.0,1.2824267]
[1746722125696,0.21204702,101020.0,101010.0,1.4796267]
[1746722125896,0.12944702,101020.0,101010.0,1.61605288]
[1746722126199,0.12944702,101020.0,101010.0,1.63129527]
[1746722126405,0.12944702,101020.0,101010.0,1.49486909]
[1746722127008,0.12944702,101020.0,101010.0,2.51486909]
[1746722127207,0.00447,101020.0,101010.0,2.51486909]
[1746722127407,0.08347,101020.0,101010.0,2.51462453]
[1746722128201,0.08347,101020.0,101010.0,2.5954267]
[1746722129103,0.00447,101020.0,101010.0,2.73185288]
[1746722129500,0.00447,101020.0,101010.0,2.5954267]
[1746722129704,0.00447,101020.0,101010.0,2.6954267]
[1746722130111,0.00447,101020.0,101010.0,3.26283644]
[1746722130996,0.00447,101020.0,101010.0,3.0113267]
[1746722131200,0.00447,101020.0,101010.0,3.02643024]
[1746722131610,0.00441843,101020.0,101010.0,2.89000406]
[1746722131904,0.00441843,101020.0,101010.0,3.26285642]
[1746722134512,0.00441843,101020.0,101010.0,3.12679626]
[1746722134812,0.00441843,101020.0,101010.0,3.02679626]
[1746722135013,0.00441843,101020.0,101010.0,3.12679626]
[1746722135505,0.00441843,101020.0,101010.0,3.26322244]
[1746722137716,0.00441843,101020.0,101010.0,3.16322244]
[1746722138016,0.00441843,101020.0,101010.0,3.26322244]
[1746722138214,0.00441843,101020.0,101010.0,2.89037008]
[1746722138509,0.00441843,101020.0,101010.0,3.02679626]
[1746722138714,0.04391843,101020.0,101010.0,3.12679626]
[1746722140126,0.00441843,101020.0,101010.0,3.12679626]
[1746722140530,0.00441843,101020.0,101010.0,3.26322244]
[1746722140829,3e-08,101020.0,101010.0,3.26322244]
[1746722141028,0.1174816,101030.0,101020.0,0.1979508]
[1746722141228,0.1174816,101030.0,101020.0,1.75394654]
[1746722141420,0.14790909,101040.0,101030.0,0.1979313]
[1746722141621,0.14790909,101040.0,101030.0,1.42258704]
[1746722141821,0.14790909,101040.0,101030.0,1.48258704]
[1746722142022,0.18740909,101040.0,101030.0,1.34616086]
[1746722142216,0.22580909,101040.0,101030.0,1.65554704]
[1746722142628,0.14790909,101040.0,101030.0,1.75554704]
[1746722143024,0.14790909,101040.0,101030.0,3.19144704]
[1746722143225,0.11718589,101040.0,101030.0,3.17597748]
[1746722143419,0.11718589,101040.0,101030.0,3.19144404]
[1746722143629,0.0795,101050.0,101040.0,0.1979117]
[1746722143829,0.003,101050.0,101040.0,1.35850444]
[1746722144130,0.003,101050.0,101040.0,1.62650444]
[1746722144326,0.003,101050.0,101040.0,1.76293062]
[1746722144533,0.113,101060.0,101050.0,0.1978921]
[1746722144733,0.113,101060.0,101050.0,1.33844484]
[1746722145034,0.113,101060.0,101050.0,1.71844484]
[1746722145229,0.113,101060.0,101050.0,1.88644484]
[1746722146333,0.113,101060.0,101050.0,1.88844484]
[1746722146520,0.113,101060.0,101050.0,1.88944484]
[1746722146832,0.113,101060.0,101050.0,1.88944374]
[1746722147532,0.00247,101070.0,101060.0,0.1978725]
[1746722147722,0.07717,101070.0,101060.0,0.96866372]
[1746722148232,0.07717,101070.0,101060.0,1.00023754]
[1746722148631,0.07717,101070.0,101060.0,0.9847725]
[1746722148936,0.07717,101070.0,101060.0,1.00023692]
[1746722149137,0.07717,101070.0,101060.0,1.00856704]
[1746722149338,0.07717,101070.0,101060.0,0.95560262]
[1746722149541,0.07717,101070.0,101060.0,0.77560262]
[1746722149837,0.07717,101070.0,101060.0,0.87236262]
[1746722150025,0.07717,101070.0,101060.0,1.02236262]
[1746722150223,0.2750229,101070.0,101060.0,0.83176262]
[1746722150631,0.41144908,101070.0,101060.0,0.5298]
[1746722151128,0.41144908,101070.0,101060.0,0.5596725]
[1746722151533,0.41144908,101070.0,101060.0,0.3700143]
[1746722151735,0.41144908,101070.0,101060.0,0.5678868]
[1746722152633,0.2750229,101070.0,101060.0,0.5678868]
[1746722152841,0.41144908,101070.0,101060.0,0.5678868]
[1746722153139,0.07717,101070.0,101060.0,0.5678868]
[1746722154831,0.07717,101070.0,101060.0,0.8578868]
[1746722155139,0.07717,101070.0,101060.0,0.8967868]
[1746722156231,0.07717,101070.0,101060.0,1.0647868]
[1746722157239,0.07717,101070.0,101060.0,1.08025224]
[1746722160346,0.07717,101070.0,101060.0,1.22783297]
[1746722160643,0.2377339,101080.0,101070.0,0.1978529]
[1746722160644,0.0399,101080.0,101070.0,0.1978529]
[1746722160831,0.0399,101080.0,101070.0,1.14043933]
[1746722161145,0.0399,101080.0,101070.0,1.34633933]
[1746722161535,0.1149,101080.0,101070.0,1.51633933]
[1746722161734,0.1169,101080.0,101070.0,1.51633933]
[1746722162450,0.1189,101080.0,101070.0,1.51633933]
[1746722164250,0.1189,101080.0,101070.0,1.50087675]
[1746722166146,0.082,101080.0,101070.0,2.05320293]
[1746722166345,0.007,101080.0,101070.0,2.06866488]
[1746722166550,0.007,101080.0,101070.0,2.16866488]
[1746722168044,0.007,101080.0,101070.0,1.75276488]
[1746722169252,0.007,101080.0,101070.0,1.75300413]
[1746722170543,0.005,101080.0,101070.0,1.75300413]
[1746722170738,0.005,101080.0,101070.0,1.65500413]
[1746722170943,0.005,101080.0,101070.0,1.65500295]
[1746722171142,0.005,101080.0,101070.0,1.75500295]
[1746722171544,0.003,101080.0,101070.0,1.75500295]
[1746722171751,0.003,101080.0,101070.0,1.75700295]
[1746722171949,0.003,101080.0,101070.0,1.65700295]
[1746722172250,0.003,101080.0,101070.0,2.07290295]
[1746722172443,0.0813,101080.0,101070.0,1.76647677]
[1746722172644,0.1205,101080.0,101070.0,1.76647677]
[1746722173754,0.1205,101080.0,101070.0,1.73023677]
[1746722174053,0.1205,101080.0,101070.0,0.75751059]
[1746722174256,0.3183333,101080.0,101070.0,0.6733161]
[1746722174447,0.1205,101080.0,101070.0,0.67331665]
[1746722174649,0.3183333,101080.0,101070.0,0.57811665]
[1746722174952,0.45475948,101080.0,101070.0,0.57811665]
[1746722175555,0.55369548,101080.0,101070.0,0.3648]
[1746722177250,0.72169548,101080.0,101070.0,0.3648]
[1746722178158,0.91449548,101080.0,101070.0,0.004]
[1746722178554,1.41449548,101080.0,101070.0,0.004]
[1746722178761,1.05369548,101080.0,101070.0,0.004]
[1746722179151,1.22169548,101080.0,101070.0,0.004]
[1746722180158,1.1652693,101080.0,101070.0,0.002]
[1746722180361,1.30169548,101080.0,101070.0,0.002]
[1746722180956,1.30169548,101080.0,101070.0,0.3628]
[1746722181156,0.7885,101080.0,101070.0,0.69707908]
[1746722181461,0.7885,101080.0,101070.0,0.69507908]
[1746722181657,0.7885,101080.0,101070.0,0.61261718]
[1746722181861,0.9863333,101080.0,101070.0,0.61261718]
[1746722182157,0.8183333,101080.0,101070.0,0.61261718]
[1746722182553,0.6205,101080.0,101070.0,0.5971529]